bitfinex-derivatives/quotes_ETHF0:USTF0_20250520
["timestamp","ask_amount","ask_price","bid_price","bid_amount"]
[1747734836872,0.79082,2528.3,2528.2,0.6357]
[1747734837168,0.79085,2528.3,2528.1,2.74]
[1747734837472,0.79084,2528.3,2528.1,2.74]
[1747734837774,2.09314,2528.3,2528.1,5.50856]
[1747734837973,0.79085,2528.2,2528.1,5.50856]
[1747734838175,0.79085,2528.2,2528.1,1.97769]
[1747734839580,0.79085,2528.2,2528.1,2.76857]
[1747734839781,0.79085,2528.2,2528.1,1.97769]
[1747734840083,0.79085,2528.2,2528.1,2.76857]
[1747734840384,0.79085,2528.2,2528.1,1.97769]
[1747734841278,0.79085,2528.2,2528.1,2.76857]
[1747734841681,0.79085,2528.2,2528.1,1.97769]
[1747734841882,0.79085,2528.2,2528.0,2.74]
[1747734841883,0.79088,2528.1,2528.0,2.74]
[1747734842086,7.35123,2528.1,2528.0,2.74]
[1747734842380,9.32904,2528.1,2528.0,2.74]
[1747734843483,4.5806,2528.1,2528.0,5.50871999]
[1747734844192,4.5806,2528.1,2528.0,6.16831999]
[1747734844484,5.37148,2528.1,2528.0,6.16831999]
[1747734844879,5.37148,2528.1,2528.0,6.25318476]
[1747734845081,5.37148,2528.1,2528.0,5.46227476]
[1747734845585,5.37148,2528.1,2528.0,6.81787476]
[1747734846191,5.37148,2528.1,2528.0,5.46227476]
[1747734846394,9.32904,2528.1,2528.0,2.82486477]
[1747734856786,3.99868,2528.1,2528.0,4.80267476]
[1747734857395,3.2078,2528.1,2528.0,5.59358476]
[1747734858184,0.79083,2528.3,2528.0,4.80267476]
[1747734858494,0.79084,2528.3,2528.2,0.79084]
[1747734858692,0.79081,2528.3,2528.2,0.79084]
[1747734858890,3.2078,2528.4,2528.3,0.79081]
[1747734859093,3.2078,2528.4,2528.3,4.11708499]
[1747734859295,1.56880825,2529.0,2528.8,0.79065]
[1747734859493,2.35940825,2529.0,2528.9,2.6807]
[1747734859690,1.56880825,2529.0,2528.9,3.47133]
[1747734859894,1.56880825,2529.0,2528.9,5.448435]
[1747734860192,1.56880825,2529.0,2528.9,7.397805]
[1747734860193,2.35940825,2529.0,2528.9,7.397805]
[1747734860491,0.79085,2528.2,2528.1,0.08486477]
[1747734860887,0.79085,2528.2,2528.1,2.06259477]
[1747734861997,0.79085,2528.2,2528.1,4.70669477]
[1747734862602,0.79085,2528.2,2528.1,5.49757477]
[1747734862894,5.18453,2528.7,2528.1,4.70669477]
[1747734863101,0.79083,2528.3,2528.1,3.51982477]
[1747734863390,0.79083,2528.3,2528.2,1.3016]
[1747734863696,2.13813,2528.3,2528.2,1.3016]
[1747734863897,2.13813,2528.3,2528.2,3.279255]
[1747734864499,0.79081,2528.3,2528.2,3.279255]
[1747734865200,1.3175,2528.5,2528.2,3.279255]
[1747734865499,0.79078,2528.4,2528.3,1.3342]
[1747734866003,0.79078,2528.4,2528.3,3.31177499]
[1747734866206,0.79078,2528.4,2528.3,6.05177499]
[1747734866499,2.77053,2528.4,2528.3,4.71757499]
[1747734868306,6.87799,2528.4,2528.3,2.74]
[1747734868903,6.86872334,2528.4,2528.3,2.74]
[1747734870203,6.86872334,2528.4,2528.3,4.0657]
[1747734870706,3.98931334,2528.4,2528.3,6.04327499]
[1747734870909,3.2078,2528.4,2528.3,6.83408499]
[1747734871810,0.79077,2528.5,2528.4,0.79078]
[1747734872011,1.2769,2528.7,2528.4,3.303195]
[1747734872212,4.94702,2528.7,2528.6,0.79072]
[1747734872408,4.04736,2528.7,2528.6,0.79072]
[1747734872603,4.04736,2528.7,2528.6,2.76805999]
[1747734872805,4.04736,2528.7,2528.6,4.74865999]
[1747734873423,0.79071,2528.7,2528.6,4.74865999]
[1747734873913,3.99848,2528.8,2528.7,0.79069]
[1747734874116,3.99848,2528.8,2528.7,1.3734]
[1747734874310,3.99848,2528.8,2528.7,3.35066]
[1747734875914,3.99848,2528.8,2528.7,4.14135]
[1747734876308,3.99848,2528.8,2528.7,3.35066]
[1747734877609,3.99848,2528.8,2528.7,4.14135]
[1747734878513,2.09605,2528.9,2528.8,0.79066]
[1747734878812,4.0758,2528.9,2528.8,0.79066]
[1747734879014,4.0758,2528.9,2528.8,2.17246]
[1747734879309,4.0758,2528.9,2528.8,4.1218]
[1747734880315,4.0758,2528.9,2528.8,4.91246]
[1747734881013,4.0758,2528.9,2528.8,2.74]
[1747734881418,2.09605,2528.9,2528.8,2.74]
[1747734881920,4.97546,2528.9,2528.8,2.74]
[1747734882219,0.79069,2528.7,2528.6,0.08486477]
[1747734882415,3.6701,2528.7,2528.6,0.08486477]
[1747734882814,5.6227,2528.7,2528.6,0.08486477]
[1747734892123,7.19150825,2528.7,2528.6,0.08486477]
[1747734894118,5.6227,2528.7,2528.6,0.08486477]
[1747734895524,7.19150825,2528.7,2528.6,0.08486477]
[1747734897215,5.6227,2528.7,2528.6,0.08486477]
[1747734902525,5.6227,2528.7,2528.6,4.77e-06]
[1747734903627,0.79088,2528.1,2528.0,0.6866]
[1747734903825,1.69054,2528.1,2528.0,0.6866]
[1747734904024,0.79088,2528.1,2528.0,0.6866]
[1747734904230,0.79088,2528.1,2528.0,4.7808]
[1747734904631,1.69054,2528.1,2528.0,4.7808]
[1747734904826,0.79088,2528.1,2528.0,4.7808]
[1747734905031,1.69054,2528.1,2528.0,5.57171]
[1747734905225,0.79088,2528.1,2528.0,4.7808]
[1747734905427,1.69054,2528.1,2528.0,4.7808]
[1747734906433,0.79088,2528.1,2528.0,5.57171]
[1747734906631,1.69054,2528.1,2528.0,5.57171]
[1747734906836,0.79088,2528.1,2528.0,5.57171]
[1747734907232,1.69054,2528.1,2528.0,5.57171]
[1747734907632,0.79088,2528.1,2528.0,5.57171]
[1747734907835,0.89966,2528.1,2528.0,4.7808]
[1747734908039,0.79077,2528.5,2528.4,0.79077]
[1747734908338,0.79077,2528.5,2528.4,2.74]
[1747734908635,1.69043,2528.5,2528.4,2.74]
[1747734908835,3.00933,2528.5,2528.4,2.74]
[1747734909035,2.10967,2528.5,2528.4,2.74]
[1747734909236,3.00933,2528.5,2528.4,2.74]
[1747734909534,2.10967,2528.5,2528.4,2.74]
[1747734909733,1.69043,2528.5,2528.4,4.0382]
[1747734909930,0.79077,2528.5,2528.4,5.314]
[1747734910130,1.69043,2528.5,2528.4,5.314]
[1747734910740,0.79077,2528.5,2528.4,5.314]
[1747734911440,3.99853,2528.6,2528.4,5.314]
[1747734911636,3.99853,2528.6,2528.5,0.79075]
[1747734911938,1.69041,2528.5,2528.4,4.82896]
[1747734912135,1.69041,2528.5,2528.4,4.0382]
[1747734912530,0.79075,2528.5,2528.4,4.0382]
[1747734912736,1.69041,2528.5,2528.4,4.0382]
[1747734912937,0.79075,2528.5,2528.4,4.0382]
[1747734913237,1.69041,2528.5,2528.4,4.0382]
[1747734913436,0.79075,2528.5,2528.4,4.82898]
[1747734913832,1.69041,2528.5,2528.4,4.82898]
[1747734914032,0.79075,2528.5,2528.4,4.82898]
[1747734914237,1.69041,2528.5,2528.4,4.0382]
[1747734914444,0.79075,2528.5,2528.4,4.0382]
[1747734914638,0.79075,2528.5,2528.4,4.82898]
[1747734914933,1.69041,2528.5,2528.4,4.82898]
[1747734915536,1.69041,2528.5,2528.4,4.0382]
[1747734915933,0.79075,2528.5,2528.4,4.0382]
[1747734916333,1.69041,2528.5,2528.4,4.0382]
[1747734916532,0.79075,2528.5,2528.4,4.0382]
[1747734917237,1.69041,2528.5,2528.4,4.0382]
[1747734918036,0.79075,2528.5,2528.4,4.0382]
[1747734918236,1.69041,2528.5,2528.4,4.0382]
[1747734918834,0.79075,2528.5,2528.4,4.0382]
[1747734919128,1.69041,2528.5,2528.4,4.0382]
[1747734919737,0.79075,2528.5,2528.4,6.015695]
[1747734920039,1.69041,2528.5,2528.4,6.10055977]
[1747734920444,1.69041,2528.5,2528.4,6.89133977]
[1747734920937,0.89966,2528.5,2528.4,10.09913977]
[1747734921536,1.69041,2528.5,2528.4,9.30835977]
[1747734921741,0.79075,2528.5,2528.4,12.02006477]
[1747734921937,1.69041,2528.5,2528.4,13.99755977]
[1747734922142,3.67016,2528.5,2528.4,0.74126477]
[1747734922442,4.31426,2528.5,2528.4,0.08486477]
[1747734922641,5.62996,2528.5,2528.4,0.08486477]
[1747734923241,0.79078,2528.4,2528.3,2.97805564]
[1747734923444,3.67022,2528.3,2528.2,0.08353265]
[1747734923643,7.55702,2528.3,2528.2,0.08353265]
[1747734923840,8.08191,2528.3,2527.8,1.15551606]
[1747734924143,3.67035,2527.9,2527.8,1.15551606]
[1747734924537,3.67035,2527.9,2527.8,3.13348106]
[1747734924741,4.95485,2527.9,2527.8,3.13348106]
[1747734925041,5.91610951,2527.9,2527.8,1.15551606]
[1747734925237,5.91610951,2527.9,2527.8,3.21691606]
[1747734925943,0.79103,2527.6,2527.5,0.63759943]
[1747734926142,0.79103,2527.6,2526.8,10.5383]
[1747734926143,0.79113,2527.3,2526.8,10.5383]
[1747734926342,6.87834,2527.3,2526.9,1.3509]
[1747734926538,6.87834,2527.3,2527.2,0.48025464]
[1747734929147,0.79116,2527.2,2527.1,2.74]
[1747734929343,4.99467,2527.2,2527.1,2.74]
[1747734930239,0.79119,2527.1,2527.0,2.74]
[1747734930440,4.09504,2527.1,2527.0,2.74]
[1747734930639,3.01495,2527.1,2527.0,4.71859]
[1747734931039,3.01495,2527.1,2527.0,6.00819]
[1747734932847,0.89966,2527.1,2527.0,6.00819]
[1747734933050,0.89966,2527.1,2527.0,10.00721]
[1747734935249,1.69085,2527.1,2527.0,10.09207477]
[1747734935651,0.89966,2527.1,2527.0,10.09207477]
[1747734936045,1.69085,2527.1,2527.0,10.09207477]
[1747734936450,1.69085,2527.1,2527.0,9.30085477]
[1747734936644,1.69085,2527.1,2527.0,6.09305477]
[1747734937348,3.6706,2527.1,2527.0,2.82486477]
[1747734937550,4.9426,2527.1,2527.0,2.82486477]
[1747734938450,3.6706,2527.1,2527.0,2.82486477]
[1747734939247,4.3282,2527.1,2527.0,2.82486477]
[1747734939457,7.536,2527.1,2527.0,1.12169361]
[1747734939653,7.536,2527.1,2527.0,0.87752116]
[1747734939850,7.536,2527.1,2527.0,0.24417245]
[1747734940055,0.79141,2526.4,2526.3,1.2796]
[1747734940250,4.85796,2526.4,2525.9,3.2078]
[1747734940550,0.89966,2526.0,2525.9,3.99934]
[1747734940754,0.89966,2526.0,2525.9,5.29684]
[1747734940951,0.89966,2526.0,2525.9,7.276295]
[1747734941247,0.89966,2526.0,2525.9,10.016325]
[1747734941453,0.89966,2526.0,2525.9,15.016325]
[1747734944650,0.89966,2526.0,2525.9,15.962125]
[1747734945855,0.89966,2526.0,2525.9,23.848125]
[1747734946254,1.69119,2526.0,2525.9,23.848125]
[1747734946755,0.89966,2526.0,2525.9,23.848125]
[1747734947761,0.79151,2526.1,2526.0,0.79153]
[1747734947953,0.79151,2526.1,2526.0,2.17603]
[1747734948152,1.69117,2526.1,2526.0,6.89540499]
[1747734948359,0.89966,2526.1,2526.0,6.89540499]
[1747734949456,0.00593296,2526.4,2526.3,0.79143]
[1747734949661,1.98568296,2526.4,2526.3,3.99923]
[1747734949855,1.98568296,2526.4,2526.3,2.77057]
[1747734950056,2.77708296,2526.4,2526.3,2.77057]
[1747734950256,0.00593296,2526.4,2526.3,8.71837]
[1747734950455,0.00593296,2526.4,2526.3,11.35697]
[1747734951563,0.00593296,2526.4,2526.3,16.35697]
[1747734952958,2.04646,2526.9,2526.5,1.9784]
[1747734953158,1.97975,2526.7,2526.6,5.35484]
[1747734953563,2.04646,2526.9,2526.8,0.79128]
[1747734953956,2.77101,2526.9,2526.8,2.77003]
[1747734954163,2.77101,2526.9,2526.8,6.86673]
[1747734956161,2.77101,2526.9,2526.8,4.71875]
[1747734956661,4.74976001,2526.9,2526.8,2.74]
[1747734956859,7.95756001,2526.9,2526.8,2.74]
[1747734965375,9.31286001,2526.9,2526.8,2.74]
[1747734965869,9.31286001,2526.9,2526.8,2.82486477]
[1747734971172,5.35436,2526.9,2526.8,4.80361477]
[1747734971771,2.14656,2526.9,2526.8,4.80361477]
[1747734973062,2.14656,2526.9,2526.8,2.82486477]
[1747734974073,2.14656,2526.9,2526.8,4.80361477]
[1747734977974,2.14656,2526.9,2526.8,6.12601477]
[1747734979078,2.14656,2526.9,2526.8,4.14726477]
[1747734979575,2.14656,2526.9,2526.8,2.82486477]
[1747734980078,4.12531001,2526.9,2526.8,2.82486477]
[1747734980776,2.14656,2526.9,2526.8,2.82486477]
[1747734981179,2.14656,2526.9,2526.8,6.14881477]
[1747734981380,2.14656,2526.9,2526.8,4.17006477]
[1747734981576,6.10506001,2526.9,2526.8,2.82486477]
[1747734986080,4.12631,2526.9,2526.8,2.82486477]
[1747734986281,6.10506001,2526.9,2526.8,2.82486477]
[1747734988986,4.74975001,2526.9,2526.8,2.82486477]
[1747734989180,4.74975001,2526.9,2526.8,4.97634477]
[1747734989378,2.771,2526.9,2526.8,4.97634477]
[1747734989784,2.771,2526.9,2526.8,3.61614477]
[1747734989985,2.771,2526.9,2526.8,2.82486477]
[1747734990490,4.74975001,2526.9,2526.8,2.82486477]
[1747734991285,2.771,2526.9,2526.8,2.82486477]
[1747734991487,4.74975001,2526.9,2526.8,2.82486477]
[1747734991675,7.95755001,2526.9,2526.8,2.82486477]
[1747734994586,9.34335001,2526.9,2526.8,2.82486477]
[1747734995282,14.34335001,2526.9,2526.8,2.82486477]
[1747734995480,23.78779057,2526.9,2526.8,2.82486477]
[1747734995789,0.79144,2526.3,2526.2,0.31935459]
[1747734995987,2.77119,2526.3,2526.2,0.31935459]
[1747734996287,4.75041001,2526.3,2526.2,0.31935459]
[1747734996887,6.09111001,2526.3,2526.2,0.31935459]
[1747734997277,6.09111001,2526.3,2526.1,0.6343]
[1747734997278,0.79147,2526.2,2526.1,0.6343]
[1747734997588,0.7915,2526.1,2526.0,3.2078]
[1747734997788,2.77125,2526.1,2526.0,3.2078]
[1747734997987,6.107625,2526.1,2526.0,3.2078]
[1747734998187,6.107625,2526.1,2526.0,5.9478]
[1747734998876,6.107625,2526.1,2526.0,2.74]
[1747735000081,6.107625,2526.1,2526.0,4.7312]
[1747735002092,3.27842,2526.4,2526.0,6.71057499]
[1747735002295,6.75065056,2526.6,2526.1,1.2803]
[1747735002591,0.79142,2526.4,2526.3,0.79142]
[1747735002787,1.56444056,2526.6,2526.5,0.79137]
[1747735003186,2.35578056,2526.6,2526.5,5.510355]
[1747735003387,2.35578056,2526.6,2526.5,11.790655]
[1747735003594,1.56444056,2526.6,2526.5,11.790655]
[1747735003893,1.31383629,2526.7,2526.6,0.79134]
[1747735004394,4.83746502,2527.0,2526.9,0.79125]
[1747735004395,1.62966502,2527.0,2526.9,0.79125]
[1747735004690,1.62966502,2527.0,2526.9,5.97772]
[1747735004890,1.62966502,2527.0,2526.9,12.97182]
[1747735005095,1.62966502,2527.0,2526.9,15.71182]
[1747735005389,2.42088502,2527.0,2526.9,15.71182]
[1747735005783,2.42088502,2527.0,2526.9,16.39662]
[1747735005989,0.79122,2527.0,2526.9,16.39662]
[1747735006187,0.79714296,2527.1,2527.0,0.79122]
[1747735006487,0.79714296,2527.1,2527.0,2.09242]
[1747735006683,0.79714296,2527.1,2527.0,4.07101]
[1747735007084,0.79714296,2527.1,2527.0,6.81101]
[1747735007287,0.00593296,2527.1,2527.0,6.81101]
[1747735008193,0.79712296,2527.1,2527.0,6.81101]
[1747735008587,0.79712296,2527.1,2527.0,14.62501]
[1747735010200,2.77687296,2527.1,2527.0,6.81101]
[1747735010389,2.77687296,2527.1,2527.0,6.89587477]
[1747735011696,1.98568296,2527.1,2527.0,6.89587477]
[1747735011903,0.00593296,2527.1,2527.0,6.89587477]
[1747735012503,0.79712296,2527.1,2527.0,6.89587477]
[1747735015908,0.79712296,2527.1,2527.0,14.70887477]
[1747735016807,4.75546296,2527.1,2527.0,1.51102848]
[1747735017100,5.40786296,2527.1,2527.0,1.51102848]
[1747735019309,5.40786296,2527.1,2527.0,2.30224848]
[1747735019507,4.75546296,2527.1,2527.0,2.30224848]
[1747735019805,4.75546296,2527.1,2527.0,3.67234848]
[1747735020108,2.77687296,2527.1,2527.0,3.67234848]
[1747735020303,0.00593296,2527.1,2527.0,5.65093848]
[1747735020605,0.00593296,2527.1,2527.0,19.10553848]
[1747735022201,2.77687296,2527.1,2527.0,3.48961848]
[1747735022811,0.79712296,2527.1,2527.0,4.28083848]
[1747735023106,0.79712296,2527.1,2527.0,5.53803848]
[1747735023301,0.00593296,2527.1,2527.0,5.53803848]
[1747735023705,0.00593296,2527.1,2527.0,13.35103848]
[1747735024009,0.79712296,2527.1,2527.0,13.35103848]
[1747735028210,0.00593296,2527.1,2527.0,13.35103848]
[1747735032212,0.79712296,2527.1,2527.0,13.35103848]
[1747735032714,0.79712296,2527.1,2527.0,13.67039307]
[1747735033310,0.79712296,2527.1,2527.0,4.60019307]
[1747735033510,0.79712296,2527.1,2527.0,12.50419307]
[1747735035716,2.77687296,2527.1,2527.0,12.50419307]
[1747735036617,4.75546296,2527.1,2527.0,1.83038307]
[1747735037512,9.75546296,2527.1,2527.0,1.83038307]
[1747735037714,10.98467296,2527.1,2527.0,1.83038307]
[1747735037906,12.96326296,2527.1,2527.0,0.78918307]
[1747735038522,14.52770352,2527.1,2527.0,0.46982848]
[1747735040622,0.7914,2526.4,2526.3,0.31935459]
[1747735040816,2.77115,2526.4,2526.3,0.31935459]
[1747735041016,4.75029,2526.4,2526.3,0.31935459]
[1747735041212,2.77115,2526.4,2526.3,3.05935459]
[1747735041411,4.75029,2526.4,2526.3,3.05935459]
[1747735041618,3.39775,2526.4,2526.3,3.05935459]
[1747735041919,5.37689,2526.4,2526.3,3.05935459]
[1747735042120,3.39775,2526.4,2526.3,3.05935459]
[1747735042313,5.37689,2526.4,2526.3,3.05935459]
[1747735042821,5.37689,2526.4,2526.3,2.74]
[1747735043218,3.39775,2526.4,2526.3,2.74]
[1747735043715,4.04945,2526.4,2526.3,2.74]
[1747735044419,6.02859,2526.4,2526.3,2.74]
[1747735045715,1.97975,2526.4,2526.3,3.53144]
[1747735045915,3.95889,2526.4,2526.3,3.4101]
[1747735046121,4.75029,2526.4,2526.3,2.74]
[1747735046321,5.41139,2526.4,2526.3,2.74]
[1747735047223,11.75529,2526.4,2526.3,2.74]
[1747735047626,11.75529,2526.4,2525.9,0.9458]
[1747735047627,0.79153,2526.0,2525.9,0.9458]
[1747735047830,5.97908,2526.0,2525.9,0.9458]
[1747735048127,5.97908,2526.0,2525.9,3.6858]
[1747735048326,2.13541,2526.1,2526.0,0.79153]
[1747735048728,2.13541,2526.1,2526.0,2.77090499]
[1747735049128,2.13541,2526.1,2526.0,5.51090499]
[1747735049425,2.13541,2526.1,2526.0,4.71937499]
[1747735049622,6.094535,2526.1,2526.0,2.74]
[1747735051320,11.094535,2526.1,2526.0,2.74]
[1747735052120,11.094535,2526.1,2526.0,0.38298]
[1747735052627,6.094535,2526.1,2526.0,0.38298]
[1747735054624,4.114785,2526.1,2526.0,0.38298]
[1747735054828,6.094535,2526.1,2526.0,0.38298]
[1747735055025,6.094535,2526.1,2526.0,0.46784477]
[1747735059637,4.114785,2526.1,2526.0,0.46784477]
[1747735061336,4.114785,2526.1,2526.0,1.76994477]
[1747735062433,2.770885,2526.1,2526.0,1.76994477]
[1747735063335,0.79151,2526.1,2526.0,3.74931976]
[1747735064564,2.770885,2526.1,2526.0,1.76994477]
[1747735064737,0.79151,2526.1,2526.0,3.74931976]
[1747735066241,0.79151,2526.1,2526.0,4.54084976]
[1747735066842,1.3235,2526.3,2526.0,3.74931976]
[1747735067051,0.79147,2526.3,2526.2,0.79145]
[1747735067342,0.79147,2526.2,2526.1,2.11767]
[1747735067538,0.79147,2526.2,2526.1,1.3262]
[1747735067942,0.7915,2526.1,2526.0,8.52884477]
[1747735068140,2.0925,2526.1,2526.0,8.52884477]
[1747735068337,2.0925,2526.1,2526.0,10.50821976]
[1747735068543,2.0925,2526.1,2526.0,2.44721976]
[1747735068737,2.0925,2526.1,2526.0,1.84204477]
[1747735070444,2.0925,2526.1,2526.0,3.82141976]
[1747735070739,4.07225,2526.1,2526.0,3.82141976]
[1747735071146,4.07225,2526.1,2526.0,2.44721976]
[1747735071744,4.07225,2526.1,2526.0,0.46784477]
[1747735071946,4.07225,2526.1,2526.0,2.44721976]
[1747735072540,4.07225,2526.1,2526.0,0.46784477]
[1747735073644,4.07225,2526.1,2526.0,1.78234477]
[1747735074549,6.051625,2526.1,2526.0,0.46784477]
[1747735077746,6.36625244,2526.1,2526.0,0.46784477]
[1747735078558,9.57405244,2526.1,2526.0,0.46784477]
[1747735084752,0.79153,2526.0,2525.9,0.9458]
[1747735085054,4.72028,2526.0,2525.9,0.9458]
[1747735085255,11.69973501,2526.0,2525.9,3.6858]
[1747735086059,11.69973501,2526.0,2525.9,3.0913]
[1747735086248,11.69973501,2526.0,2525.9,2.6206]
[1747735087156,6.69973501,2526.0,2525.9,2.6206]
[1747735089457,8.26539672,2526.0,2525.9,2.6206]
[1747735090957,11.69973501,2526.0,2525.9,2.6206]
[1747735091159,0.79172,2525.4,2525.3,0.23896196]
[1747735091353,2.77147,2525.4,2525.3,0.23896196]
[1747735091555,0.79172,2525.4,2525.3,4.33272696]
[1747735091757,0.79172,2525.4,2525.3,3.54098696]
[1747735092057,0.79172,2525.4,2525.3,1.56106196]
[1747735092257,0.79172,2525.4,2525.3,4.30106196]
[1747735092456,0.79172,2525.4,2525.3,6.833775]
[1747735092652,0.79171,2525.5,2525.4,0.79172]
[1747735092857,0.79171,2525.5,2525.4,2.73032]
[1747735093049,0.79171,2525.5,2525.4,4.60694499]
[1747735093250,0.79171,2525.5,2525.4,7.34694499]
[1747735095355,0.79171,2525.5,2525.4,6.09004499]
[1747735095557,2.06924208,2525.5,2525.4,6.09004499]
[1747735096155,2.06924208,2525.5,2525.4,4.1102]
[1747735096747,0.78634208,2525.5,2525.4,6.09004499]
[1747735096958,3.21373296,2525.6,2525.5,0.79169]
[1747735097155,4.00539296,2525.6,2525.5,4.87259]
[1747735097358,4.00539296,2525.6,2525.5,6.852355]
[1747735099160,3.90620014,2526.7,2526.6,0.79134]
[1747735099365,1.82380014,2526.7,2526.6,11.95414]
[1747735099567,1.82380014,2526.7,2526.6,18.933045]
[1747735100459,1.82380014,2526.7,2526.6,5.186705]
[1747735100663,0.79134,2526.6,2526.5,2.74]
[1747735100852,3.92965,2526.6,2526.5,2.74]
[1747735101053,5.90863501,2526.6,2526.5,2.74]
[1747735101663,5.90863501,2526.6,2526.5,2.97896196]
[1747735102161,11.69997501,2526.6,2526.5,2.97896196]
[1747735102466,6.69997501,2526.6,2526.5,2.97896196]
[1747735103259,5.90863501,2526.6,2526.5,2.74]
[1747735103966,6.69997501,2526.6,2526.5,2.74]
[1747735104469,5.90863501,2526.6,2526.5,2.74]
[1747735104768,0.68083296,2526.9,2526.8,0.79128]
[1747735105062,0.00593296,2526.9,2526.8,3.99908]
[1747735105266,0.00593296,2526.9,2526.8,8.71783]
[1747735105566,0.00593296,2526.9,2526.8,6.73908]
[1747735106069,0.00593296,2526.9,2526.8,8.71783]
[1747735107159,0.00593296,2526.9,2526.8,9.41083]
[1747735107361,0.00593296,2526.9,2526.8,5.9478]
[1747735107362,3.96443297,2526.9,2526.8,5.9478]
[1747735107563,0.00593296,2526.9,2526.8,8.71783]
[1747735108061,3.2078,2527.9,2526.9,1.97813]
[1747735108269,3.35135,2527.6,2527.4,0.79108]
[1747735108469,3.35135,2527.6,2527.5,1.3482]
[1747735108669,5.32959,2527.6,2527.5,1.3482]
[1747735109170,5.32959,2527.6,2527.5,4.0882]
[1747735109171,6.12062,2527.6,2527.5,4.0882]
[1747735109670,1.97824,2527.6,2527.5,4.0882]
[1747735110171,2.76927,2527.6,2527.5,4.0882]
[1747735110364,0.79103,2527.6,2527.5,4.0882]
[1747735110566,2.76923,2527.6,2527.5,4.0882]
[1747735111365,4.74898,2527.6,2527.5,2.74]
[1747735115975,4.74898,2527.6,2527.5,2.82486477]
[1747735117572,0.79122,2527.0,2526.9,4.4762]
[1747735117766,0.79122,2527.0,2526.9,3.2078]
[1747735117966,0.79128,2526.8,2526.7,0.31650238]
[1747735118172,2.77103,2526.8,2526.7,0.31650238]
[1747735118371,4.749855,2526.8,2526.7,0.31650238]
[1747735119379,0.79131,2526.7,2526.6,2.74]
[1747735119578,4.14466,2526.7,2526.6,2.74]
[1747735119874,6.123565,2526.7,2526.6,2.74]
[1747735120080,0.79134,2526.6,2526.5,5.9478]
[1747735120284,4.78599,2526.6,2526.5,5.9478]
[1747735120479,6.76497501,2526.6,2526.5,5.9478]
[1747735120776,0.79133,2526.7,2526.6,0.79134]
[1747735120981,0.79133,2526.7,2526.5,7.926785]
[1747735120982,2.0149,2527.0,2526.8,0.79127]
[1747735121273,2.80612,2527.0,2526.9,1.3436]
[1747735121779,2.80612,2527.0,2526.9,3.32227]
[1747735122174,2.80612,2527.0,2526.9,6.06227]
[1747735124183,2.80612,2527.0,2526.9,4.0836]
[1747735125483,2.80612,2527.0,2526.9,2.74]
[1747735125877,2.80612,2527.0,2526.9,4.71867]
[1747735127682,2.80612,2527.0,2526.9,2.74]
[1747735127983,2.80612,2527.0,2526.9,4.71867]
[1747735129084,2.80612,2527.0,2526.9,2.74]
[1747735129281,2.80612,2527.0,2526.9,2.82486477]
[1747735130881,4.78479,2527.0,2526.9,2.82486477]
[1747735133282,2.0149,2527.0,2526.9,2.82486477]
[1747735133482,1.446,2527.1,2526.9,3.61611477]
[1747735133683,1.446,2527.1,2527.0,2.09291]
[1747735133684,0.7912,2527.1,2527.0,2.09291]
[1747735133987,2.04216,2527.2,2527.1,0.79119]
[1747735134188,4.02191,2527.2,2527.1,0.79119]
[1747735134383,6.00042501,2527.2,2527.1,3.99899]
[1747735134584,0.79116,2527.2,2527.1,5.977505]
[1747735135986,0.79116,2527.2,2527.1,6.29405308]
[1747735136383,0.79116,2527.2,2527.1,5.50286308]
[1747735136585,4.74942501,2527.2,2527.1,0.31654808]
[1747735136781,6.01122501,2527.2,2527.1,0.31654808]
[1747735141297,4.03147501,2527.2,2527.1,1.58504808]
[1747735142889,4.03147501,2527.2,2527.1,4.79284808]
[1747735143199,2.97675,2527.4,2527.1,6.77136308]
[1747735143200,0.999,2527.4,2527.1,6.77136308]
[1747735143498,3.65,2527.7,2527.2,1.2685]
[1747735143699,3.65,2527.7,2527.5,3.99886]
[1747735143886,0.999,2527.7,2527.6,2.05953]
[1747735144395,0.999,2527.7,2527.6,5.37844999]
[1747735145100,1.79591296,2527.8,2527.7,0.791]
[1747735145797,1.79591296,2527.8,2527.7,2.76904499]
[1747735146001,1.79591296,2527.8,2527.7,1.97804499]
[1747735146191,1.79591296,2527.8,2527.7,2.76904499]
[1747735146386,1.79591296,2527.8,2527.7,1.97804499]
[1747735146593,0.791,2527.7,2527.6,2.97896196]
[1747735146896,4.15695,2527.7,2527.6,2.97896196]
[1747735147095,6.13507,2527.7,2527.6,0.23896196]
[1747735148693,6.13507,2527.7,2527.5,6.73884]
[1747735149000,0.79103,2527.6,2527.5,9.28736]
[1747735149200,4.07598,2527.6,2527.5,2.74]
[1747735149401,12.74368,2527.6,2527.5,2.74]
[1747735149701,20.94168,2527.6,2527.5,0.80071042]
[1747735151399,15.94168,2527.6,2527.5,0.80071042]
[1747735152104,20.94168,2527.6,2527.5,0.80071042]
[1747735155205,0.79112,2527.3,2527.2,0.08486477]
[1747735155405,2.77087,2527.3,2527.2,0.08486477]
[1747735155702,4.749305,2527.3,2527.2,0.08486477]
[1747735158610,5.748305,2527.3,2527.2,0.08486477]
[1747735162912,5.748305,2527.3,2527.2,0.40140905]
[1747735167313,3.768555,2527.3,2527.2,0.40140905]
[1747735168109,3.768555,2527.3,2527.2,0.08486477]
[1747735169212,1.79012,2527.3,2527.2,4.16625977]
[1747735169413,0.999,2527.3,2527.2,8.06135977]
[1747735169916,1.79012,2527.3,2527.2,8.06135977]
[1747735170112,0.999,2527.3,2527.2,8.06135977]
[1747735170309,1.79012,2527.3,2527.2,8.06135977]
[1747735170505,1.79012,2527.3,2527.2,7.27019977]
[1747735170710,0.999,2527.3,2527.2,8.06135977]
[1747735171211,1.79012,2527.3,2527.2,8.06135977]
[1747735171411,0.999,2527.3,2527.2,8.06135977]
[1747735172513,0.999,2527.3,2527.2,8.69737786]